[Event "African Online-ch U20-Open 2021"]
[Site "Online"]
[Date "2021.02.01"]
[Round "4.9"]
[White "Soojay, Jorah"]
[Black "Bidi, Abdeljalil"]
[Result "0-1"]
[ECO "C52"]
[WhiteElo "1478"]
[BlackElo "1750"]
[Annotator "NA RC"]
[PlyCount "116"]
[EventDate "2021.02.01"]
[EventType "swiss"]
[EventCountry "NET"]
[SourceTitle "playchess.com"]
[Source "ChessBase"]
[SourceQuality "1"]
[TimeControl "1500+10"]

1. e4 {[%emt 0:00:00]} e5 {[%emt 0:00:11]} 2. Nf3 {[%emt 0:00:05]} Nc6 {[%emt 0:00:03]} 3. Bc4 {[%emt 0:00:04]} Bc5 {[%emt 0:00:03]} 4. b4 {[%emt 0:00:02]} Bxb4 {[%emt 0:00:02]} 5. c3 {[%emt 0:00:07]} Ba5 {[%emt 0:00:01]} 6. d4 {[%emt 0:00:03]} exd4 {[%emt 0:00:02]} 7. O-O {[%emt 0:01:13]} Nf6 {[%emt 0:00:03]} 8. cxd4 {[%emt 0:00:05]} d5 {[%emt 0:00:43]} 9. exd5 {[%emt 0:00:13]} Nxd5 {[%emt 0:00:02]} 10. Bg5 {[%emt 0:00:42]} Qd6 {[%emt 0:00:08]} 11. Ne5 {[%emt 0:02:19]} O-O {[%emt 0:01:15]} 12. Nxc6 {[%emt 0:03:23]} Qxc6 {[%emt 0:00:15]} 13. Bb3 {[%emt 0:03:39]} h6 {[%emt 0:00:11]} 14. Bd2 {[%emt 0:01:42]} Bxd2 {[%emt 0:00:25]} 15. Qxd2 {[%emt 0:01:34]} Nf6 {[%emt 0:00:24]} 16. Nc3 {[%emt 0:00:33]} Bf5 {[%emt 0:01:52]} 17. Rfe1 {[%emt 0:00:31]} Rad8 {[%emt 0:00:41]} 18. Rac1 {[%emt 0:01:12]} Qd7 {[%emt 0:00:12]} 19. Qf4 {[%emt 0:00:20]} c6 {[%emt 0:00:12]} 20. Rcd1 {[%emt 0:00:47]} Nh5 {[%emt 0:00:59]} 21. Qh4 {[%emt 0:00:17]} Nf6 {[%emt 0:00:27]} 22. f3 {[%emt 0:00:49]} Rfe8 {[%emt 0:00:40]} 23. Ne4 {[%emt 0:00:46]} Nxe4 {[%emt 0:02:24]} 24. fxe4 {[%emt 0:01:06]} Bg6 {[%emt 0:00:09]} 25. Qg3 {[%emt 0:00:06]} Bxe4 {[%emt 0:00:18]} 26. Rf1 {[%emt 0:00:09]} Bd5 {[%emt 0:00:05]} 27. Qf4 {[%emt 0:00:25]} Bxb3 {[%emt 0:00:07]} 28. axb3 {[%emt 0:00:10]} Qd5 {[%emt 0:00:01]} 29. Rd3 {[%emt 0:00:11]} Re4 {[%emt 0:00:14]} 30. Qf3 {[%emt 0:00:32]} Rxd4 {[%emt 0:00:06]} 31. Rxd4 {[%emt 0:00:08]} Qxd4+ {[%emt 0:00:02]} 32. Kh1 {[%emt 0:00:03]} Qd5 {[%emt 0:00:02]} 33. Qc3 {[%emt 0:00:15]} Qd3 {[%emt 0:00:12]} 34. Qe1 {[%emt 0:00:46]} Qxb3 {[%emt 0:00:54]} 35. Qe7 {[%emt 0:00:06]} Rd1 {[%emt 0:00:25]} 36. Qe8+ {[%emt 0:00:15]} Kh7 {[%emt 0:00:04]} 37. Qe4+ {[%emt 0:00:04]} g6 {[%emt 0:00:03]} 38. Qe2 {[%emt 0:01:42]} Rxf1+ {[%emt 0:00:04]} 39. Qxf1 {[%emt 0:00:03]} a5 {[%emt 0:00:02]} 40. h3 {[%emt 0:00:08]} a4 {[%emt 0:00:02]} 41. h4 {[%emt 0:00:21]} a3 {[%emt 0:00:04]} 42. h5 {[%emt 0:00:04]} a2 {[%emt 0:00:11]} 43. hxg6+ {[%emt 0:00:07]} fxg6 {[%emt 0:00:02]} 44. Qf6 {[%emt 0:00:06]} Qd1+ {[%emt 0:00:32]} 45. Kh2 {[%emt 0:00:06]} a1=Q {[%emt 0:00:03]} 46. Qf7+ {[%emt 0:00:10]} Qg7 {[%emt 0:00:03]} 47. Qf4 {[%emt 0:00:13]} Qh5+ {[%emt 0:00:08]} 48. Kg3 {[%emt 0:00:09]} Qg5+ {[%emt 0:00:07]} 49. Qxg5 {[%emt 0:00:07]} hxg5 {[%emt 0:00:02]} 50. Kg4 {[%emt 0:00:04]} Kh6 {[%emt 0:00:02]} 51. g3 {[%emt 0:00:03]} b5 {[%emt 0:00:02]} 52. Kh3 {[%emt 0:00:04]} b4 {[%emt 0:00:01]} 53. Kg4 {[%emt 0:00:02]} b3 {[%emt 0:00:02]} 54. Kh3 {[%emt 0:00:01]} b2 {[%emt 0:00:01]} 55. Kg4 {[%emt 0:00:01]} b1=Q {[%emt 0:00:03]} 56. Kh3 {[%emt 0:00:01]} Qd7+ {[%emt 0:00:03]} 57. g4 {[%emt 0:00:06]} Qdd3+ {[%emt 0:00:04]} 58. Kh2 {[%emt 0:00:03]} Qbc2+ {[%emt 0:00:02]} 0-1

[Event "African Online-ch U20-Open 2021"]
[Site "Online"]
[Date "2021.02.01"]
[Round "4.10"]
[White "Mcligeyo, Robert"]
[Black "Celso Andre Manjate"]
[Result "0-1"]
[ECO "A26"]
[WhiteElo "1688"]
[BlackElo "1721"]
[Annotator "NA RC"]
[PlyCount "198"]
[EventDate "2021.02.01"]
[EventType "swiss"]
[EventCountry "NET"]
[SourceTitle "playchess.com"]
[Source "ChessBase"]
[SourceQuality "1"]
[TimeControl "1500+10"]

1. c4 {[%emt 0:00:00]} Nf6 {[%emt 0:00:05]} 2. Nf3 {[%emt 0:00:06]} g6 {[%emt 0:00:03]} 3. g3 {[%emt 0:00:04]} Bg7 {[%emt 0:00:03]} 4. Bg2 {[%emt 0:00:03]} O-O {[%emt 0:00:02]} 5. O-O {[%emt 0:00:02]} d6 {[%emt 0:00:05]} 6. Nc3 {[%emt 0:00:05]} e5 {[%emt 0:00:24]} 7. d3 {[%emt 0:00:03]} Nc6 {[%emt 0:00:05]} 8. Bg5 {[%emt 0:00:06]} h6 {[%emt 0:00:02]} 9. Bd2 {[%emt 0:00:03]} Nh5 {[%emt 0:01:15]} 10. Nh4 {[%emt 0:01:18]} g5 {[%emt 0:00:48]} 11. e3 {[%emt 0:01:14]} Nxg3 {[%emt 0:03:45]} 12. fxg3 {[%emt 0:00:30]} gxh4 {[%emt 0:00:04]} 13. Nd5 {[%emt 0:00:18]} hxg3 {[%emt 0:04:35]} 14. hxg3 {[%emt 0:00:05]} f5 {[%emt 0:00:04]} 15. Qh5 {[%emt 0:00:30]} Ne7 {[%emt 0:01:52]} 16. e4 {[%emt 0:01:58]} Nxd5 {[%emt 0:06:15]} 17. cxd5 {[%emt 0:00:05]} f4 {[%emt 0:03:40]} 18. gxf4 {[%emt 0:00:05]} exf4 {[%emt 0:00:03]} 19. Bxf4 {[%emt 0:00:05]} Kh7 {[%emt 0:00:05]} 20. Be3 {[%emt 0:01:15]} Bd7 {[%emt 0:00:11]} 21. Rxf8 {[%emt 0:00:08]} Qxf8 {[%emt 0:00:03]} 22. Rf1 {[%emt 0:00:03]} Qe8 {[%emt 0:00:09]} 23. Qf7 {[%emt 0:02:53]} Kh8 {[%emt 0:01:08]} 24. Qf4 {[%emt 0:02:51]} Qg6 {[%emt 0:00:27]} 25. Qf7 {[%emt 0:00:23]} Qg4 {[%emt 0:01:04]} 26. Qf4 {[%emt 0:02:04]} Qe2 {[%emt 0:01:20]} 27. Qg3 {[%emt 0:03:06]} Rg8 {[%emt 0:00:41]} 28. Qf3 {[%emt 0:03:00]} Qxb2 {[%emt 0:00:42]} 29. Qh5 {[%emt 0:00:40]} Be8 {[%emt 0:00:16]} 30. Qh4 {[%emt 0:00:42]} Kh7 {[%emt 0:00:12]} 31. Kh1 {[%emt 0:00:50]} Qe2 {[%emt 0:00:19]} 32. Bc1 {[%emt 0:00:45]} Qxd3 {[%emt 0:00:04]} 33. Bh3 {[%emt 0:00:33]} Bd7 {[%emt 0:00:10]} 34. Rg1 {[%emt 0:00:54]} Qf3+ {[%emt 0:00:04]} 35. Bg2 {[%emt 0:00:06]} Qe2 {[%emt 0:00:26]} 36. Qe7 {[%emt 0:00:36]} Bg4 {[%emt 0:00:08]} 37. Qxc7 {[%emt 0:01:04]} Bf3 {[%emt 0:00:03]} 38. Qf7 {[%emt 0:00:18]} Bh5 {[%emt 0:00:15]} 39. Qf5+ {[%emt 0:00:10]} Bg6 {[%emt 0:00:03]} 40. Qf3 {[%emt 0:00:10]} Qxa2 {[%emt 0:00:18]} 41. Bh3 {[%emt 0:00:08]} Rf8 {[%emt 0:00:13]} 42. Qg2 {[%emt 0:00:26]} Qxg2+ {[%emt 0:00:07]} 43. Bxg2 {[%emt 0:00:03]} Bd4 {[%emt 0:00:05]} 44. Rd1 {[%emt 0:00:06]} Bc5 {[%emt 0:00:03]} 45. Bb2 {[%emt 0:00:08]} Rf2 {[%emt 0:00:06]} 46. Ba1 {[%emt 0:00:13]} b5 {[%emt 0:00:07]} 47. e5 {[%emt 0:00:03]} dxe5 {[%emt 0:00:02]} 48. Bxe5 {[%emt 0:00:12]} Bb6 {[%emt 0:00:05]} 49. d6 {[%emt 0:00:04]} Bd8 {[%emt 0:00:03]} 50. Bd4 {[%emt 0:00:07]} Ra2 {[%emt 0:00:04]} 51. Bd5 {[%emt 0:00:10]} Ra6 {[%emt 0:00:03]} 52. Bc5 {[%emt 0:00:18]} Ra4 {[%emt 0:00:20]} 53. Bc6 {[%emt 0:00:07]} Rh4+ {[%emt 0:00:10]} 54. Kg2 {[%emt 0:00:05]} b4 {[%emt 0:00:21]} 55. Bxa7 {[%emt 0:00:07]} b3 {[%emt 0:00:05]} 56. Bd4 {[%emt 0:00:06]} Bc2 {[%emt 0:00:23]} 57. Rd2 {[%emt 0:00:16]} Rxd4 {[%emt 0:00:25]} 58. Rxd4 {[%emt 0:00:42]} b2 {[%emt 0:00:04]} 59. Rb4 {[%emt 0:00:24]} b1=Q {[%emt 0:00:06]} 60. Rxb1 {[%emt 0:00:02]} Bxb1 {[%emt 0:00:01]} 61. Kf3 {[%emt 0:00:10]} Kg7 {[%emt 0:00:07]} 62. Kg4 {[%emt 0:00:05]} Bg5 {[%emt 0:00:03]} 63. d7 {[%emt 0:00:06]} Kf7 {[%emt 0:00:05]} 64. Kf3 {[%emt 0:00:27]} Ke7 {[%emt 0:00:09]} 65. Be4 {[%emt 0:00:03]} Ba2 {[%emt 0:00:03]} 66. Bf5 {[%emt 0:00:05]} Bd5+ {[%emt 0:00:07]} 67. Kg4 {[%emt 0:00:04]} Bc4 {[%emt 0:00:12]} 68. Kh5 {[%emt 0:00:12]} Kf7 {[%emt 0:00:09]} 69. Bg6+ {[%emt 0:00:08]} Kg7 {[%emt 0:00:03]} 70. Bf5 {[%emt 0:00:03]} Bb5 {[%emt 0:00:42]} 71. Be6 {[%emt 0:00:17]} Ba4 {[%emt 0:00:07]} 72. Bf5 {[%emt 0:00:05]} Bb3 {[%emt 0:00:03]} 73. Bh3 {[%emt 0:00:49]} Bc4 {[%emt 0:00:07]} 74. Bf5 {[%emt 0:00:05]} Bb3 {[%emt 0:00:04]} 75. Bh3 {[%emt 0:00:03]} Bf7+ {[%emt 0:00:02]} 76. Kg4 {[%emt 0:00:04]} Kg6 {[%emt 0:00:09]} 77. Kf3 {[%emt 0:00:12]} Bd5+ {[%emt 0:00:03]} 78. Kg3 {[%emt 0:00:07]} Bc6 {[%emt 0:00:05]} 79. Be6 {[%emt 0:00:08]} Bd8 {[%emt 0:00:09]} 80. Kg4 {[%emt 0:00:07]} Ba4 {[%emt 0:00:06]} 81. Kh3 {[%emt 0:00:06]} Kg5 {[%emt 0:00:03]} 82. Kg3 {[%emt 0:00:09]} Bc7+ {[%emt 0:00:03]} 83. Kh3 {[%emt 0:00:05]} Bc6 {[%emt 0:00:12]} 84. Bg4 {[%emt 0:00:35]} Bd5 {[%emt 0:00:07]} 85. Be2 {[%emt 0:00:34]} Be6+ {[%emt 0:00:08]} 86. Kg2 {[%emt 0:00:04]} Bxd7 {[%emt 0:00:02]} 87. Bf3 {[%emt 0:00:03]} h5 {[%emt 0:00:10]} 88. Be4 {[%emt 0:00:05]} h4 {[%emt 0:00:03]} 89. Bf3 {[%emt 0:00:06]} Kf4 {[%emt 0:00:04]} 90. Bb7 {[%emt 0:00:06]} Ke3 {[%emt 0:00:04]} 91. Ba8 {[%emt 0:00:08]} Bg4 {[%emt 0:00:04]} 92. Bb7 {[%emt 0:00:06]} Ke2 {[%emt 0:00:02]} 93. Bc6 {[%emt 0:00:04]} Ke1 {[%emt 0:00:04]} 94. Bb7 {[%emt 0:00:12]} Be2 {[%emt 0:00:03]} 95. Bd5 {[%emt 0:00:20]} Bf1+ {[%emt 0:00:02]} 96. Kh1 {[%emt 0:00:05]} Kf2 {[%emt 0:00:17]} 97. Bc6 {[%emt 0:01:07]} h3 {[%emt 0:00:10]} 98. Be4 {[%emt 0:00:10]} Bg2+ {[%emt 0:00:03]} 99. Bxg2 {[%emt 0:00:06]} hxg2# {[%emt 0:00:01]} 0-1

[Event "African Online-ch U20-Open 2021"]
[Site "Online"]
[Date "2021.02.01"]
[Round "4.11"]
[White "Selogelo Othata"]
[Black "Lion, Pierre"]
[Result "1-0"]
[ECO "B47"]
[WhiteElo "1725"]
[BlackElo "1586"]
[Annotator "NA RC"]
[PlyCount "143"]
[EventDate "2021.02.01"]
[EventType "swiss"]
[EventCountry "NET"]
[SourceTitle "playchess.com"]
[Source "ChessBase"]
[SourceQuality "1"]
[TimeControl "1500+10"]

1. e4 {[%emt 0:00:00]} c5 {[%emt 0:00:04]} 2. Nf3 {[%emt 0:00:05]} e6 {[%emt 0:00:02]} 3. d4 {[%emt 0:00:02]} cxd4 {[%emt 0:00:02]} 4. Nxd4 {[%emt 0:00:02]} Nc6 {[%emt 0:00:02]} 5. Nc3 {[%emt 0:00:03]} Qc7 {[%emt 0:00:03]} 6. Ndb5 {[%emt 0:00:18]} Qb8 {[%emt 0:00:03]} 7. g3 {[%emt 0:00:04]} a6 {[%emt 0:00:08]} 8. Nd4 {[%emt 0:00:05]} Nf6 {[%emt 0:00:10]} 9. Bg2 {[%emt 0:00:05]} Bc5 {[%emt 0:00:56]} 10. Be3 {[%emt 0:00:32]} Qc7 {[%emt 0:02:02]} 11. Nxe6 {[%emt 0:01:15]} fxe6 {[%emt 0:01:21]} 12. Bxc5 {[%emt 0:00:08]} b5 {[%emt 0:01:58]} 13. Bd6 {[%emt 0:00:22]} Qb6 {[%emt 0:00:01]} 14. e5 {[%emt 0:01:30]} Ng8 {[%emt 0:00:04]} 15. O-O {[%emt 0:02:55]} Nge7 {[%emt 0:00:06]} 16. Bxe7 {[%emt 0:00:22]} Kxe7 {[%emt 0:00:02]} 17. Qd6+ {[%emt 0:00:16]} Kf7 {[%emt 0:00:14]} 18. Bxc6 {[%emt 0:03:07]} dxc6 {[%emt 0:00:47]} 19. Qd3 {[%emt 0:00:16]} Bb7 {[%emt 0:01:14]} 20. Qd7+ {[%emt 0:00:27]} Kf8 {[%emt 0:00:16]} 21. Qxe6 {[%emt 0:00:16]} Re8 {[%emt 0:00:13]} 22. Qf5+ {[%emt 0:00:52]} Kg8 {[%emt 0:00:21]} 23. Ne4 {[%emt 0:01:41]} Bc8 {[%emt 0:00:17]} 24. Qg5 {[%emt 0:01:29]} h6 {[%emt 0:02:35]} 25. Qh5 {[%emt 0:01:43]} Re7 {[%emt 0:01:00]} 26. Rad1 {[%emt 0:01:40]} Be6 {[%emt 0:00:08]} 27. Qg6 {[%emt 0:02:09]} Bf7 {[%emt 0:01:05]} 28. Qd6 {[%emt 0:00:21]} Re8 {[%emt 0:00:04]} 29. Qc5 {[%emt 0:01:25]} Qxc5 {[%emt 0:00:09]} 30. Nxc5 {[%emt 0:00:04]} Rxe5 {[%emt 0:00:01]} 31. Rd8+ {[%emt 0:00:09]} Kh7 {[%emt 0:00:03]} 32. Rxh8+ {[%emt 0:00:03]} Kxh8 {[%emt 0:00:02]} 33. Nb3 {[%emt 0:00:28]} Re2 {[%emt 0:00:06]} 34. Nd4 {[%emt 0:00:23]} Rd2 {[%emt 0:00:10]} 35. Nxc6 {[%emt 0:00:21]} Rxc2 {[%emt 0:00:05]} 36. Nb4 {[%emt 0:00:44]} Rxb2 {[%emt 0:00:03]} 37. Nxa6 {[%emt 0:00:07]} Rxa2 {[%emt 0:00:01]} 38. Nc5 {[%emt 0:00:14]} Rc2 {[%emt 0:00:20]} 39. Na6 {[%emt 0:00:16]} Rc6 {[%emt 0:01:23]} 40. Nb4 {[%emt 0:00:16]} Rc4 {[%emt 0:00:03]} 41. Rb1 {[%emt 0:00:03]} Bg6 {[%emt 0:00:29]} 42. Rb2 {[%emt 0:00:13]} Be4 {[%emt 0:00:03]} 43. f4 {[%emt 0:00:15]} Kg8 {[%emt 0:00:16]} 44. Kf2 {[%emt 0:00:09]} Kf7 {[%emt 0:00:16]} 45. Ke3 {[%emt 0:00:07]} Ke6 {[%emt 0:00:38]} 46. Na6 {[%emt 0:00:36]} Bc6 {[%emt 0:00:16]} 47. Nc7+ {[%emt 0:00:10]} Kf5 {[%emt 0:01:18]} 48. Nxb5 {[%emt 0:00:12]} Bxb5 {[%emt 0:00:59]} 49. Rxb5+ {[%emt 0:00:05]} Kg6 {[%emt 0:00:02]} 50. g4 {[%emt 0:00:44]} Ra4 {[%emt 0:00:09]} 51. h4 {[%emt 0:00:12]} Kf6 {[%emt 0:00:07]} 52. Rb6+ {[%emt 0:00:27]} Kf7 {[%emt 0:00:03]} 53. Rd6 {[%emt 0:00:25]} Rc4 {[%emt 0:00:10]} 54. Rd4 {[%emt 0:00:10]} Rc1 {[%emt 0:00:02]} 55. Rd7+ {[%emt 0:00:12]} Kf6 {[%emt 0:00:06]} 56. h5 {[%emt 0:00:43]} Rg1 {[%emt 0:00:07]} 57. Rd6+ {[%emt 0:00:31]} Kf7 {[%emt 0:00:02]} 58. Rg6 {[%emt 0:00:17]} Re1+ {[%emt 0:00:03]} 59. Kf2 {[%emt 0:00:06]} Re8 {[%emt 0:00:04]} 60. Rb6 {[%emt 0:00:26]} Re4 {[%emt 0:00:10]} 61. Kf3 {[%emt 0:00:03]} Re1 {[%emt 0:00:02]} 62. g5 {[%emt 0:00:17]} hxg5 {[%emt 0:00:07]} 63. fxg5 {[%emt 0:00:07]} Rh1 {[%emt 0:00:08]} 64. Rb7+ {[%emt 0:00:21]} Kf8 {[%emt 0:00:05]} 65. Kg4 {[%emt 0:00:06]} Rg1+ {[%emt 0:00:02]} 66. Kf5 {[%emt 0:00:04]} Ra1 {[%emt 0:00:10]} 67. Kg6 {[%emt 0:00:12]} Ra5 {[%emt 0:03:19]} 68. Rf7+ {[%emt 0:00:50]} Kg8 {[%emt 0:00:03]} 69. Rxg7+ {[%emt 0:00:03]} Kf8 {[%emt 0:00:03]} 70. h6 {[%emt 0:00:21]} Ra6+ {[%emt 0:00:02]} 71. Kh7 {[%emt 0:00:08]} Rb6 {[%emt 0:00:30]} 72. Rc7 {[%emt 0:00:10]} 1-0

[Event "African Online-ch U20-Open 2021"]
[Site "Online"]
[Date "2021.02.01"]
[Round "4.13"]
[White "Ben Abbes, Ayoub"]
[Black "Shah, Darshan Samir"]
[Result "1-0"]
[ECO "B00"]
[WhiteElo "1481"]
[BlackElo "1502"]
[Annotator "NA RC"]
[PlyCount "53"]
[EventDate "2021.02.01"]
[EventType "swiss"]
[EventCountry "NET"]
[SourceTitle "playchess.com"]
[Source "ChessBase"]
[SourceQuality "1"]
[TimeControl "1500+10"]

1. e4 {[%emt 0:00:00]} d6 {[%emt 0:00:19]} 2. d4 {[%emt 0:00:06]} Nc6 {[%emt 0:00:09]} 3. c3 {[%emt 0:00:04]} Nf6 {[%emt 0:00:28]} 4. Bd3 {[%emt 0:00:04]} g6 {[%emt 0:00:10]} 5. h3 {[%emt 0:00:06]} Bg7 {[%emt 0:00:06]} 6. Nf3 {[%emt 0:00:30]} O-O {[%emt 0:00:09]} 7. Bg5 {[%emt 0:00:09]} Nb8 {[%emt 0:01:12]} 8. O-O {[%emt 0:00:09]} c5 {[%emt 0:00:24]} 9. d5 {[%emt 0:00:30]} Nbd7 {[%emt 0:00:06]} 10. Na3 {[%emt 0:00:15]} a6 {[%emt 0:00:21]} 11. Re1 {[%emt 0:01:22]} h6 {[%emt 0:00:18]} 12. Bf4 {[%emt 0:00:18]} Nb6 {[%emt 0:00:48]} 13. Qd2 {[%emt 0:00:16]} e5 {[%emt 0:00:35]} 14. Bxh6 {[%emt 0:00:37]} Bd7 {[%emt 0:00:53]} 15. Bg5 {[%emt 0:00:13]} Qc8 {[%emt 0:00:49]} 16. Nh2 {[%emt 0:01:03]} Kh7 {[%emt 0:01:02]} 17. f4 {[%emt 0:00:32]} Rh8 {[%emt 0:02:34]} 18. fxe5 {[%emt 0:00:06]} dxe5 {[%emt 0:00:04]} 19. Rf1 {[%emt 0:00:05]} Ne8 {[%emt 0:01:34]} 20. Rxf7 {[%emt 0:00:11]} Nd6 {[%emt 0:00:21]} 21. Re7 {[%emt 0:00:31]} Qc7 {[%emt 0:02:20]} 22. Rf1 {[%emt 0:00:15]} Nbc8 {[%emt 0:00:08]} 23. Rxg7+ {[%emt 0:00:15]} Kxg7 {[%emt 0:00:06]} 24. Bf6+ {[%emt 0:01:03]} Kh7 {[%emt 0:00:23]} 25. Bxh8 {[%emt 0:00:16]} Kxh8 {[%emt 0:00:03]} 26. Qh6+ {[%emt 0:00:04]} Kg8 {[%emt 0:00:06]} 27. Rf8# {[%emt 0:00:06]} 1-0

[Event "African Online-ch U20-Open 2021"]
[Site "Online"]
[Date "2021.02.01"]
[Round "4.14"]
[White "Meise, Keagen"]
[Black "Machinya Desire"]
[Result "0-1"]
[ECO "D85"]
[WhiteElo "1200"]
[BlackElo "1638"]
[Annotator "NA RC"]
[PlyCount "82"]
[EventDate "2021.02.01"]
[EventType "swiss"]
[EventCountry "NET"]
[SourceTitle "playchess.com"]
[Source "ChessBase"]
[SourceQuality "1"]
[TimeControl "1500+10"]

1. d4 {[%emt 0:00:00]} Nf6 {[%emt 0:00:18]} 2. c4 {[%emt 0:00:04]} g6 {[%emt 0:00:11]} 3. Nc3 {[%emt 0:00:03]} d5 {[%emt 0:00:05]} 4. cxd5 {[%emt 0:00:02]} Nxd5 {[%emt 0:00:10]} 5. e4 {[%emt 0:00:02]} Nxc3 {[%emt 0:00:17]} 6. bxc3 {[%emt 0:00:02]} Bg7 {[%emt 0:00:13]} 7. Nf3 {[%emt 0:00:08]} c5 {[%emt 0:00:05]} 8. Bd2 {[%emt 0:00:07]} cxd4 {[%emt 0:00:12]} 9. cxd4 {[%emt 0:00:09]} Bg4 {[%emt 0:00:04]} 10. Bb5+ {[%emt 0:00:18]} Nd7 {[%emt 0:00:17]} 11. Be3 {[%emt 0:00:16]} Qa5+ {[%emt 0:00:06]} 12. Qd2 {[%emt 0:00:28]} Qxb5 {[%emt 0:00:04]} 13. a4 {[%emt 0:00:18]} Qa6 {[%emt 0:00:10]} 14. Ng1 {[%emt 0:00:49]} Nb6 {[%emt 0:00:28]} 15. f3 {[%emt 0:00:18]} Bd7 {[%emt 0:00:08]} 16. a5 {[%emt 0:00:19]} Nc4 {[%emt 0:00:04]} 17. Qe2 {[%emt 0:00:20]} Nxe3 {[%emt 0:00:03]} 18. Qxe3 {[%emt 0:00:01]} Rd8 {[%emt 0:00:06]} 19. Ne2 {[%emt 0:00:27]} Bb5 {[%emt 0:00:08]} 20. Rc1 {[%emt 0:01:03]} Qxa5+ {[%emt 0:00:11]} 21. Kf2 {[%emt 0:00:06]} Bxe2 {[%emt 0:00:06]} 22. Qxe2 {[%emt 0:00:38]} Bxd4+ {[%emt 0:00:05]} 23. Kf1 {[%emt 0:00:06]} O-O {[%emt 0:00:14]} 24. Rd1 {[%emt 0:00:17]} Bg7 {[%emt 0:00:09]} 25. Rb1 {[%emt 0:00:33]} b6 {[%emt 0:00:08]} 26. h3 {[%emt 0:00:20]} Rd2 {[%emt 0:00:04]} 27. Qe3 {[%emt 0:00:13]} Rfd8 {[%emt 0:00:06]} 28. Qb3 {[%emt 0:00:22]} Qa6+ {[%emt 0:00:13]} 29. Qb5 {[%emt 0:00:06]} Qxb5+ {[%emt 0:00:20]} 30. Rxb5 {[%emt 0:00:07]} Rd1+ {[%emt 0:00:02]} 31. Kf2 {[%emt 0:00:01]} R8d2+ {[%emt 0:00:05]} 32. Ke3 {[%emt 0:00:17]} Bd4+ {[%emt 0:00:08]} 33. Kf4 {[%emt 0:00:01]} Rxh1 {[%emt 0:00:02]} 34. g4 {[%emt 0:00:08]} e5+ {[%emt 0:00:11]} 35. Kg5 {[%emt 0:00:04]} Rxh3 {[%emt 0:00:08]} 36. Kf6 {[%emt 0:00:02]} Rxf3+ {[%emt 0:00:03]} 37. Ke7 {[%emt 0:00:02]} Bc5+ {[%emt 0:00:04]} 38. Ke8 {[%emt 0:00:04]} Rfd3 {[%emt 0:00:07]} 39. Rxc5 {[%emt 0:00:10]} bxc5 {[%emt 0:00:03]} 40. g5 {[%emt 0:00:02]} Kg7 {[%emt 0:00:11]} 41. Ke7 {[%emt 0:00:09]} Rd7+ {[%emt 0:00:06]} 0-1

[Event "African Online-ch U20-Open 2021"]
[Site "Online"]
[Date "2021.02.01"]
[Round "4.15"]
[White "Ofile Masilo"]
[Black "Palmer, Reegan"]
[Result "1-0"]
[ECO "D35"]
[WhiteElo "1457"]
[BlackElo "1325"]
[Annotator "NA RC"]
[PlyCount "111"]
[EventDate "2021.02.01"]
[EventType "swiss"]
[EventCountry "NET"]
[SourceTitle "playchess.com"]
[Source "ChessBase"]
[SourceQuality "1"]
[TimeControl "1500+10"]

1. d4 {[%emt 0:03:49]} d5 {[%emt 0:00:06]} 2. c4 {[%emt 0:00:04]} e6 {[%emt 0:00:02]} 3. Nc3 {[%emt 0:00:04]} Nf6 {[%emt 0:00:02]} 4. cxd5 {[%emt 0:00:03]} exd5 {[%emt 0:00:03]} 5. Bg5 {[%emt 0:00:05]} Be7 {[%emt 0:00:02]} 6. e3 {[%emt 0:00:07]} Nbd7 {[%emt 0:00:05]} 7. Bd3 {[%emt 0:00:07]} b6 {[%emt 0:00:10]} 8. Nge2 {[%emt 0:00:30]} Bb7 {[%emt 0:00:02]} 9. Rc1 {[%emt 0:00:12]} O-O {[%emt 0:00:06]} 10. O-O {[%emt 0:00:06]} c5 {[%emt 0:00:14]} 11. b3 {[%emt 0:01:10]} Rc8 {[%emt 0:01:17]} 12. Bf4 {[%emt 0:01:29]} Ne4 {[%emt 0:00:36]} 13. f3 {[%emt 0:02:18]} Nxc3 {[%emt 0:00:38]} 14. Nxc3 {[%emt 0:00:16]} Bg5 {[%emt 0:00:49]} 15. Bxg5 {[%emt 0:01:24]} Qxg5 {[%emt 0:00:03]} 16. f4 {[%emt 0:00:12]} Qf6 {[%emt 0:00:21]} 17. Qg4 {[%emt 0:02:34]} Qe6 {[%emt 0:01:48]} 18. Qxe6 {[%emt 0:00:50]} fxe6 {[%emt 0:00:02]} 19. Nb5 {[%emt 0:00:38]} Ba6 {[%emt 0:00:40]} 20. a4 {[%emt 0:01:06]} Nf6 {[%emt 0:02:03]} 21. g3 {[%emt 0:02:01]} Rfd8 {[%emt 0:01:25]} 22. Rfd1 {[%emt 0:00:42]} Bxb5 {[%emt 0:00:11]} 23. Bxb5 {[%emt 0:00:10]} Ne8 {[%emt 0:00:12]} 24. dxc5 {[%emt 0:00:24]} bxc5 {[%emt 0:00:14]} 25. Bxe8 {[%emt 0:00:51]} Rxe8 {[%emt 0:00:02]} 26. Rc2 {[%emt 0:00:07]} Re7 {[%emt 0:00:08]} 27. Rdc1 {[%emt 0:00:07]} Rec7 {[%emt 0:00:02]} 28. Kf2 {[%emt 0:00:08]} Kf7 {[%emt 0:00:02]} 29. Kf3 {[%emt 0:00:05]} h5 {[%emt 0:00:22]} 30. h3 {[%emt 0:00:19]} Kf6 {[%emt 0:00:06]} 31. g4 {[%emt 0:00:05]} hxg4+ {[%emt 0:00:19]} 32. hxg4 {[%emt 0:00:03]} g5 {[%emt 0:00:02]} 33. Rh1 {[%emt 0:01:04]} gxf4 {[%emt 0:00:31]} 34. exf4 {[%emt 0:00:27]} Rb7 {[%emt 0:00:08]} 35. g5+ {[%emt 0:00:19]} Kf5 {[%emt 0:00:32]} 36. Rc3 {[%emt 0:01:40]} Rcb8 {[%emt 0:00:35]} 37. Rh6 {[%emt 0:00:17]} Rf7 {[%emt 0:00:35]} 38. Re3 {[%emt 0:00:20]} Rxb3 {[%emt 0:00:21]} 39. Rxb3 {[%emt 0:00:06]} e5 {[%emt 0:00:07]} 40. Rf6+ {[%emt 0:00:19]} Rxf6 {[%emt 0:00:02]} 41. gxf6 {[%emt 0:00:03]} Kxf6 {[%emt 0:00:01]} 42. fxe5+ {[%emt 0:00:22]} Kxe5 {[%emt 0:00:02]} 43. Rb1 {[%emt 0:00:12]} Kd4 {[%emt 0:00:02]} 44. Rd1+ {[%emt 0:00:06]} Kc4 {[%emt 0:00:01]} 45. Ke3 {[%emt 0:00:04]} d4+ {[%emt 0:00:51]} 46. Kd2 {[%emt 0:00:15]} Kb4 {[%emt 0:00:07]} 47. Rb1+ {[%emt 0:00:19]} Kc4 {[%emt 0:00:30]} 48. Rc1+ {[%emt 0:00:36]} Kb4 {[%emt 0:00:07]} 49. Kd3 {[%emt 0:00:06]} Kb3 {[%emt 0:00:33]} 50. Rxc5 {[%emt 0:00:28]} Kxa4 {[%emt 0:00:06]} 51. Rc1 {[%emt 0:00:12]} a5 {[%emt 0:00:02]} 52. Kxd4 {[%emt 0:00:31]} Kb3 {[%emt 0:00:02]} 53. Rb1+ {[%emt 0:00:09]} Ka2 {[%emt 0:00:02]} 54. Rb5 {[%emt 0:00:04]} a4 {[%emt 0:00:01]} 55. Kc3 {[%emt 0:00:33]} a3 {[%emt 0:00:09]} 56. Ra5 {[%emt 0:00:42]} 1-0